[Event "ROM-GER Kings"]
[Site "Medias"]
[Date "2015.11.02"]
[Round "4.4"]
[White "Bluebaum, Matthias"]
[Black "Deac, Bogdan Daniel"]
[Result "1/2-1/2"]
[ECO "A13"]
[WhiteElo "2588"]
[BlackElo "2455"]
[Annotator "Bulmaga,I"]
[PlyCount "135"]
[EventDate "2015.10.30"]
[EventType "schev"]
[EventRounds "5"]
[EventCountry "ROU"]
[SourceTitle "CBM 169"]
[Source "ChessBase"]
[SourceDate "2015.11.10"]
[SourceVersion "1"]
[SourceVersionDate "2015.11.10"]
[SourceQuality "1"]
[WhiteTeam "Germany"]
[BlackTeam "Romania"]
[WhiteTeamCountry "GER"]
[BlackTeamCountry "ROU"]
[TimeControl "40/5400+30:1800+30"]

1. Nf3 Nf6 2. c4 e6 3. g3 d5 4. Bg2 dxc4 5. O-O Nbd7 6. Na3 Bxa3 {Eine
verpflichtende Entscheidung. Statt den Bauern festzuhalten, gibt Schwarz
seinen schwarzfeldrigen Läufer, um seine Entwicklung schnell abzuschließen
und anschließend die Schwächen der weißen Bauernstruktur auszunutzen.} 7.
bxa3 Rb8 8. Qc2 c5 9. Qxc4 b6 10. a4 Bb7 11. d4 {Vielleicht war es besser, die
weißen Felder mit 11.d3 unter Kontrolle zu halten.} (11. d3 O-O 12. Bb2 $11)
11... Rc8 12. Ba3 O-O 13. a5 Bd5 14. Qb5 Qc7 15. Rfc1 Rfd8 16. axb6 axb6 17.
Bb2 Ra8 18. dxc5 Nxc5 $6 (18... Ra5 19. Qd3 bxc5 $15 {Der Bauer auf c5 ist
viel gefährlicher als der a-Bauer. In dieser Stellung würde ich definitiv
lieber mit Schwarz spielen.}) 19. Bxf6 gxf6 20. Qb2 Kg7 21. Ne1 Bxg2 22. Nxg2
Ra6 23. Ne3 Rda8 $2 (23... Qe5 $11) 24. Ng4 $1 Qe7 25. Qd2 $16 Kh8 26. Qh6 Qf8
27. Qxf6+ Qg7 28. Rc2 Ra4 29. Qxg7+ Kxg7 30. Ne3 {[#] Weiß hat einen Bauern
mehr, aber es ist nicht leicht, den materiellen Vorteil in einen Punkt zu
verwandeln. Die schwarzen Figuren stehen sehr aktiv und er hat gute Chancen,
Remis zu halten.} R8a6 31. Kg2 Ne4 32. h4 b5 33. Kf3 Nd6 34. Rd1 Kf8 35. Rb2
Ke7 36. Rdd2 Ra3 37. Rdc2 R6a4 38. Kg2 Kd7 39. Nf1 Rc4 40. Nd2 Rxc2 41. Rxc2
Ra4 42. e3 h6 43. Kf3 f5 44. Nb3 Ke7 45. Nc5 Ra7 46. Nb3 Ra4 47. Nd4 e5 48. Ne2
Ke6 49. h5 Ra3 50. Nc3 b4 51. Nb1 Ra4 52. Nd2 Nb5 53. Nb3 Ra3 54. Rc4 (54. Rc6+
Kf7 55. Rxh6 Rxa2 $13) 54... Rxa2 55. Rxb4 Nc3 56. g4 Nd1 57. Rb6+ Kd5 58. gxf5
Rxf2+ 59. Kg3 Rxf5 60. Rxh6 Nxe3 61. Rh8 Rg5+ 62. Kf3 Nf5 63. Rd8+ Kc6 64. Na5+
Kb5 65. Rd5+ Ka6 66. Rxe5 Rxh5 67. Kg4 Ng3 68. Rxh5 1/2-1/2

[Event "BRA-ch 83rd"]
[Site "Rio de Janeiro"]
[Date "2017.02.13"]
[Round "10"]
[White "Fier, Alexandr"]
[Black "Macedo, Maximo Iack Miranda"]
[Result "1-0"]
[ECO "A13"]
[WhiteElo "2581"]
[BlackElo "2366"]
[Annotator "Fier,A"]
[PlyCount "53"]
[EventDate "2017.02.06"]
[EventType "tourn"]
[EventRounds "11"]
[EventCountry "BRA"]
[EventCategory "6"]
[SourceTitle "CBM 177"]
[Source "ChessBase"]
[SourceDate "2017.03.16"]
[SourceVersion "1"]
[SourceVersionDate "2017.03.16"]
[SourceQuality "1"]
[TimeControl "5400+30"]

{This was a must-win situation, since I was half point behind Matsuura with
two rounds left. I decided to play something less theoretical and just get the
pieces into play.} 1. c4 {[%emt 0:00:00]} e6 {[%emt 0:02:00]} 2. Nf3 {[%emt 0:
00:00]} Nf6 {[%emt 0:00:19]} 3. g3 {[%emt 0:00:00]} d5 {[%emt 0:00:11]} 4. Bg2
{[%emt 0:00:00]} dxc4 {[%emt 0:00:31]} 5. Qa4+ {[%emt 0:00:00]} Bd7 {[%emt 0:
00:10] Already a surprise!} (5... Nbd7 6. Qxc4 a6 {was what I was expecting
and here I had some unusual ideas to try.}) 6. Qxc4 {[%emt 0:00:00]} c5 {
[%emt 0:00:06]} 7. Qc2 {[%emt 0:01:09] Almost a novelty. Since I was out of
book, I ran to try a Hedgehog style position. The problem is that I had
already made 3 moves with the queen and I still needed to play a3, e3, d3 and
b3 to get a reasonable position.} (7. Ne5 {is the best move and after} Qc8 8.
d3 Nc6 9. Nxd7 Qxd7 10. Nd2 Rc8 11. Nf3 Be7 12. Bd2 {Adams,M (2751)-Deac,B 
(2572) Gibraltar Masters 15th 2017 (3) 1-0 White has a decent position to play
for a win, as seen in}) 7... Nc6 {[%emt 0:08:53]} 8. O-O {[%emt 0:03:32]} Rc8 {
[%emt 0:00:06]} 9. d3 {[%emt 0:00:29]} Be7 {[%emt 0:00:49]} 10. a3 {[%emt 0:02:
24] Necessary to avoid any ...Nb4.} O-O {[%emt 0:03:15] Here I was already
feeling fine, I thought Black should play something more energetic against my
slow play.} (10... Nd4 {was what I was afraid of, changing the character of
the position} 11. Nxd4 cxd4 12. Qb3 b5 13. Nd2 O-O 14. Nf3 Bc6 15. Bd2 {
and the position remains equal.}) 11. e3 {[%emt 0:01:11]} Nd5 {[%emt 0:08:15]
I'm not sure about this plan. Since my opponent was not used to this kind of
position, he spend a lot of time deciding how to arrange the pieces.} (11... e5
{was natural, grabbing some space and aiming to play 12...Bf5 hitting the weak
point on d3. It's important to realise that compared to a normal Hedgehog, the
bishop on g2 is unable to defend the pawn on d3.} 12. Nc3 Bf5 13. Rd1 Qd7 {
and the position is slightly more pleasant for Black, even if during the game
I had the feeling that White should be almost fine.} (13... Nd4 {looks
threatening, but doesn't work so well with the pawn on e5 hanging.} 14. exd4
cxd4 15. Nxe5 {and White is better.})) 12. Nbd2 {[%emt 0:01:30]} b5 {[%emt 0:
09:53]} 13. b3 {[%emt 0:03:14]} f6 {[%emt 0:20:11]} (13... Bf6 {does not makes
much sense, Black should keep the pieces to exploit the space advantage.} 14.
Bb2 Bxb2 15. Qxb2 Qf6 16. Qxf6 Nxf6 17. Rfc1 $16) 14. Bb2 {[%emt 0:00:10]} Be8
{[%emt 0:00:44]} 15. Rad1 {[%emt 0:01:20]} Nb6 $6 {[%emt 0:07:03] I don't
believe it's a good idea to bring the knight to d7. Black should first bring
the bishop back into the game.} (15... Bg6 16. Ne4 Qd7 17. Rfe1 Rfd8 {and I
was not completely sure about how to proceed.}) 16. Ne4 {[%emt 0:02:00]} Nd7 {
[%emt 0:00:31]} 17. Qe2 {[%emt 0:01:18]} Qc7 {[%emt 0:08:51]} 18. d4 {[%emt 0:
01:26] Finally I managed to open the position and I thought I was much better,
but in fact things are not that simple.} cxd4 {[%emt 0:01:27]} 19. exd4 {
[%emt 0:00:07]} b4 $5 {[%emt 0:02:39] Using a weak pawn to spoil White's
structure.} 20. axb4 {[%emt 0:02:59]} Bxb4 {[%emt 0:03:43]} (20... Nxb4 $2 {
looks natural, but loses immediately to a nice trick.} 21. Rc1 Qb8 22. Rxc8
Qxc8 23. Nd6 $1 {and White wins a pawn.} Bxd6 24. Qxe6+ Bf7 25. Qxd6 $16) 21.
Rc1 {[%emt 0:02:10] Keeping the pressure, my opponent was already heading into
time trouble.} Bf7 {[%emt 0:03:27]} 22. Nfd2 {[%emt 0:04:45] Going to c4, but
missing a beautiful combination.} (22. Neg5 $1 {I saw this move, but I could
not find out how to follow.} fxg5 23. Nxg5 Qd6 24. Bxc6 $1 (24. Qe4 Nf6 $19)
24... Rxc6 25. Qe4 {with decisive advantage.}) 22... Qb6 {[%emt 0:01:59]} 23.
Nc4 {[%emt 0:00:33]} Qb8 {[%emt 0:01:40]} 24. Ra1 {[%emt 0:08:19][%csl Rc5,Rd6]
[%cal Gb2a3] Played after 8 long minutes. I was struggling to find a plan and
after some minutes I saw that it was interesting to exchange the dark squared
bishops to exploit the squares c5 and d6.} e5 $2 {[%emt 0:03:31] Cracking
under pressure.} (24... Ne7 {was expected} 25. Ba3 Bxa3 26. Nxa3 $1 {the
knight will do good work on b5!} (26. Rxa3 Nf5 27. Rd1 Nb6 {is unclear.}) 26...
Nb6 27. Nb5 {with some advantage, but the game goes on.}) 25. Bh3 $1 {[%emt 0:
01:22] Now White wins material by force.} Rcd8 {[%emt 0:04:38]} 26. Bxd7 {
[%emt 0:01:48]} Rxd7 {[%emt 0:00:21]} 27. Nxf6+ {[%emt 0:00:28]} (27. Nxf6+
gxf6 28. Qg4+ Kh8 29. Qxd7 Be8 30. Qd5 Ne7 31. Qe6 $18) 1-0

[Event "Metz op 31th"]
[Site "Metz"]
[Date "2013.07.25"]
[Round "8"]
[White "Aguettaz, Maxime"]
[Black "Crut, Aurelien"]
[Result "1-0"]
[ECO "A13"]
[WhiteElo "2412"]
[BlackElo "2367"]
[Annotator "Metz Alekhine/Primel,D"]
[PlyCount "83"]
[EventDate "2013.04.20"]
[EventType "swiss"]
[EventRounds "9"]
[EventCountry "FRA"]
[SourceTitle "EXT 2016"]
[Source "ChessBase"]
[SourceDate "2015.10.08"]
[SourceVersion "1"]
[SourceVersionDate "2015.10.08"]
[SourceQuality "1"]
[TimeControl "40/5400:1800+30"]
[WhiteClock "1:30:00"]
[BlackClock "1:30:00"]

1. c4 e6 2. g3 d5 3. Bg2 Nf6 4. Nf3 dxc4 (4... Be7 5. b3 O-O 6. O-O c5 7. e3
Nc6 8. Bb2 d4 9. exd4 cxd4 10. Re1 Bc5 11. d3 Re8 12. a3 a5) 5. Na3 c5 (5...
Bxa3 $142 {Pose plus de problèmes aux Blancs} 6. bxa3 (6. Qa4+ b5 $1 7. Qxa3
Bb7 $13) 6... O-O 7. Qc2 Nc6 8. Bb2 Re8 9. Qxc4 e5 $132) 6. Nxc4 Nc6 7. O-O Be7
8. b3 O-O 9. Bb2 Bd7 10. d4 cxd4 11. Nxd4 Rc8 12. Nb5 Rb8 $5 $146 {Les Noirs
veulent économiser le coup a6 par rapport à la partie de Nikcevic} (12... a6
13. Nbd6 Rc7 (13... Rb8 14. Rc1 Nd5 {Nikcevic,N (2350)-Miranovic,R (2380)
YUG-chT Cetinje 1992 1-0}) 14. e4 {Gordon,S (2535)-Golod,V (2579) Bundesliga
1112 2011 (3.6) 1/2-1/2}) 13. Nbd6 b5 14. Ne5 Nxe5 15. Bxe5 Qb6 16. Ne4 Rbd8
17. Bd4 Qb8 18. Nxf6+ Bxf6 19. Bxf6 gxf6 20. Qd4 $14 {[%csl Rd7,Rf6]} e5 {
Les Noirs veulent activer le Bd7 mais c'est au détriment d'un affaiblissement
de la structure et la Qb8 sera mal placée pour défendre l'aile-roi.} 21. Qh4
$1 Qb6 22. Be4 $1 f5 23. Rad1 $1 Qg6 (23... fxe4 $2 24. Rxd7 Rxd7 25. Qg4+ {
[%cal Gg4d7,Gg4g8]}) 24. Bg2 Qb6 25. Bh3 {[%csl Rf5][%cal Gh4g5]} f6 {[%csl
Re6,Rg6]} 26. e4 Bc8 27. Bxf5 Bxf5 28. exf5 Rd4 29. Rxd4 exd4 30. Rd1 Rd8 31.
Qe4 Qd6 32. Rd3 a6 33. Kg2 a5 34. h4 b4 35. h5 Kf7 36. h6 $1 $36 {[%csl Rf7,
Rg7,Rh7]} Qd5 37. Kf3 {Les Blancs ont une bonne finale} Qxe4+ 38. Kxe4 Re8+ 39.
Kf3 (39. Kxd4 $2 Re2) 39... Rd8 40. g4 Rd7 41. Rd2 $1 {Prive les Noirs de tout
contre-jeu en 17ème rangée} Rc7 42. Ke4 1-0

[Event "FRA-ch 58 Championnat"]
[Site "Belfort"]
[Date "1983.08.19"]
[Round "7"]
[White "Bernard, Christophe"]
[Black "Preissmann, Emmanuel"]
[Result "0-1"]
[ECO "A13"]
[WhiteElo "2335"]
[BlackElo "2360"]
[Annotator "Primel,D"]
[PlyCount "80"]
[EventDate "1983.08.12"]
[EventType "tourn"]
[EventRounds "15"]
[EventCountry "FRA"]
[EventCategory "2"]
[SourceTitle "EXT 2016"]
[Source "ChessBase"]
[SourceDate "2015.10.08"]
[SourceVersion "1"]
[SourceVersionDate "2015.10.08"]
[SourceQuality "1"]
[TimeControl "40/9000:16/5400:0"]

1. Nf3 d5 2. c4 e6 3. g3 dxc4 4. Bg2 Nf6 5. O-O (5. Qa4+ {L'alternative} Nbd7
6. Qxc4 c5) 5... Nbd7 6. Qc2 (6. Na3 Bxa3 7. bxa3 $13) (6. Qa4) 6... Nb6 $5
$146 {Les Noirs relèvent le défi théorique des Blancs en s'accrochant au P}
(6... a6 7. Qxc4 b5 8. Qc2 Bb7 {Smyslov,V-Bondarevsky,I URS Absolute-ch 1941 
(8) 1/2}) 7. Na3 Bxa3 8. bxa3 Bd7 9. Ne5 Ba4 10. Qc3 Nfd5 11. Qd4 O-O 12. Nxc4
c5 $1 13. Qe4 (13. Qxc5 Rc8) 13... Bb5 14. Nxb6 (14. Na5 $5) 14... axb6 15. Bb2
{[%csl Gb2]} Ra4 $5 {[%csl Ra3]} 16. Qc2 Qd7 {[%cal Gd7a4,Gb5e2]} 17. Rfe1 Bc6
18. Rab1 Re8 19. e3 c4 20. d3 cxd3 21. Qxd3 Nf6 22. Qxd7 Nxd7 23. Red1 $13 {
[%csl Gb2] Avec cette structure, les deux camps peuvent jouer pour le gain
mais le Bb2 est trés fort} Nc5 24. Bd4 $1 Ne4 25. Rxb6 f5 26. Bb2 (26. f3 Ng5
27. Kf2 {[%cal Gh2h4]} e5) 26... Rc8 27. h4 Bd5 $132 {[%cal Gc8c2,Gd5a2]} 28.
Bf1 Ra5 29. Bb5 Rc7 30. a4 $14 Ra8 31. Be5 $1 Rc2 (31... Rc5 32. Bd7 {[%csl
Re6]}) 32. Rxd5 $1 exd5 33. Rxb7 $40 {[%csl Gb7,Rg7]} Rac8 34. Rxg7+ {Un coup
naturel mais la double attaque Bd7 était plus précise} (34. Bd7 $1 {[%cal
Gd7c8,Gd7f5]} Rc1+ 35. Kg2 R8c2 36. Be6+ Kf8 37. Rf7+ Ke8 38. Rxf5 {[%cal
Gf5f2]} g6 39. Rf4) 34... Kf8 35. Rxh7 $2 (35. Bd3 $8 {[%cal Gd3e4,Gd3c2] La
pression sur la faiblesse "f2" devient trop forte et il était nécessaire
d'échanger le N}) 35... Rc1+ 36. Bf1 R8c2 $19 37. Rh8+ Kf7 38. Rh7+ Kg6 39.
Rg7+ Kh6 40. g4 Rxf2 0-1

[Event "Sautron op 16th"]
[Site "Sautron"]
[Date "2016.10.22"]
[Round "5.3"]
[White "Malakhatko, Vadim"]
[Black "Ider, Borya"]
[Result "1-0"]
[ECO "A13"]
[WhiteElo "2514"]
[BlackElo "2463"]
[Annotator "Primel,D"]
[PlyCount "91"]
[EventDate "2016.10.22"]
[EventType "swiss"]
[EventRounds "9"]
[EventCountry "FRA"]
[SourceTitle "EXT 2019"]
[Source "ChessBase"]
[SourceDate "2018.10.10"]
[SourceVersion "1"]
[SourceVersionDate "2018.10.10"]
[SourceQuality "1"]
[TimeControl "40/5400+30:1800+30"]
[WhiteClock "0:31:18"]
[BlackClock "1:01:19"]

1. c4 {[%emt 0:00:00]} e6 {[%emt 0:00:00]} 2. Nf3 {[%emt 0:00:00]} d5 {[%emt 0:
00:20]} 3. g3 {[%emt 0:00:00]} Nf6 {[%emt 0:00:15]} 4. Bg2 {[%emt 0:00:05]} c6
{[%emt 0:00:23][%cal Gd5c4] Menace dc4 et les Blancs n'ont plus l'option Qa4} (
4... c5 5. b3 d4 $1 $132 (5... Be7 6. Bb2 O-O 7. O-O b6 8. e3 Nc6 9. Nc3 dxc4 (
9... Bb7 10. cxd5 Nxd5 11. Nxd5 Qxd5 12. d4) 10. bxc4 Bb7 11. Qe2)) 5. Qc2 {
[%emt 0:01:49]} (5. d4 {Transpose sur une Catalane}) (5. b3 $5) 5... Be7 {
[%emt 0:00:38]} (5... dxc4 6. Qxc4 b5 7. Qb3 Bb7 8. O-O Nbd7 9. d4 a6 10. Ne5
Qb6 11. Be3 c5 12. Nxd7 Nxd7 13. d5 e5 14. a4 b4 15. Nd2 Bd6 16. Nc4 Qc7 17. f4
O-O 18. Rac1 exf4 19. Bxf4 Bxf4 20. gxf4 a5 21. e4 Rae8 22. e5 Ba6 23. Rfe1 Kh8
24. Nd6 Re7 25. Qe3 Qd8 26. b3 g5 27. Kh1 Qb8 28. Qf2 gxf4 29. Qxf4 Bd3 30. Re3
Bg6 31. Rf1 Rxe5 32. Rxe5 Qxd6 33. Re8 Qxf4 34. Rxf8+ Kg7 35. Rxf4 {Carlsen,M 
(2864)-Nakamura,H (2784) Moscow 2013 1-0}) 6. O-O {[%emt 0:00:58]} b5 $6 {
[%emt 0:00:21] Joué à tempo et il doit s'agir d'une préparation mais b5
parait trop lent} (6... O-O) 7. cxb5 {[%emt 0:14:38]} cxb5 {[%emt 0:00:12]} 8.
a4 $146 {[%emt 0:00:04]} (8. d3 Bb7 9. Bf4 Nc6 10. Nc3 a6 11. e4 Rc8 12. Qe2 d4
13. Nb1 O-O 14. Ne5 Nxe5 15. Bxe5 Qb6 16. Nd2 Nd7 17. Nf3 Nxe5 18. Nxe5 Qc7 19.
f4 Qc2 20. Rf2 Qxe2 21. Rxe2 a5 22. Rf1 Rc7 23. Rff2 Rfc8 24. Bf1 a4 25. a3 Ba6
26. Rd2 Rc1 27. Kg2 f6 28. Nf3 b4 29. Rfe2 e5 30. fxe5 fxe5 31. Rf2 b3 32. Nxe5
Bg5 33. Rde2 R1c2 34. Rf7 Bxd3 35. Rd7 {0-1 (35) Vaulin,A (2520)-Moroz,A (2410)
Katowice 1992}) 8... b4 $1 {[%emt 0:00:40][%csl Rb1,Rc3] Le Nb1 manque de cases
} 9. d3 {[%emt 0:00:18]} O-O {[%emt 0:00:09]} 10. Nbd2 {[%emt 0:01:34]} Bb7 {
[%emt 0:02:07]} 11. Nb3 {[%emt 0:02:11]} Nbd7 {[%emt 0:03:39]} 12. Bf4 {
[%emt 0:00:56][%csl Gc7]} Rc8 $132 {[%emt 0:04:06]} 13. Qd2 {[%emt 0:00:49]}
Nh5 {[%emt 0:04:03]} 14. Be3 {[%emt 0:00:19]} e5 {[%emt 0:00:33][%cal Gd5d4]}
15. d4 {[%emt 0:03:52]} e4 {[%emt 0:04:23]} 16. Ne5 {[%emt 0:04:14]} f5 {
[%emt 0:00:08]} 17. Bh3 $13 {[%emt 0:15:47][%cal Gh3d7]} Nxe5 {[%emt 0:17:31]}
18. dxe5 {[%emt 0:00:06]} Rc4 {[%emt 0:00:23]} 19. Nd4 {[%emt 0:01:42]} Bc8 {
[%emt 0:00:17][%cal Gf5f4,Gc8h3]} 20. f4 {[%emt 0:19:09]} exf3 {[%emt 0:07:21]}
21. Rxf3 {[%emt 0:00:15]} f4 {[%emt 0:01:08]} 22. gxf4 {[%emt 0:01:14]} Bxh3 {
[%emt 0:00:09]} 23. Rxh3 {[%emt 0:00:06]} Qc8 {[%emt 0:00:08]} 24. f5 {[%emt 0:
02:10]} Nf4 {[%emt 0:02:43]} (24... Rxd4 $6 25. Bxd4 Qxf5 26. Qd3) 25. Rf3 {
[%emt 0:02:12]} Rxd4 {[%emt 0:01:09]} 26. Bxd4 {[%emt 0:00:06]} Qxf5 {[%emt 0:
00:04]} 27. Qxf4 {[%emt 0:08:12]} Qxf4 {[%emt 0:00:07]} 28. Rxf4 {[%emt 0:00:
04]} Rxf4 {[%emt 0:00:05]} 29. e3 {[%emt 0:00:12]} Rg4+ {[%emt 0:00:07]} 30.
Kf2 {[%emt 0:00:07]} a6 {[%emt 0:00:59]} 31. Rc1 $16 {[%emt 0:00:18][%csl Ra6,
Gc1,Rg4][%cal Gc1c6] La Rg4 est assez mal placée} Rg6 {[%emt 0:00:37]} 32. Rc7
{[%emt 0:00:16]} Kf8 {[%emt 0:00:09]} 33. Kf3 {[%emt 0:01:40]} Rh6 {[%emt 0:00:
14]} 34. Ra7 {[%emt 0:01:33]} b3 {[%emt 0:05:52]} 35. Rb7 {[%emt 0:01:38]} a5 {
[%emt 0:00:24]} (35... Rxh2 36. e6 {[%csl Rf8][%cal Gb7b8]} (36. Rxb3 h5 {
[%csl Gh5]})) 36. Kg3 {[%emt 0:08:36]} Bb4 $1 {[%emt 0:02:31]} 37. Rd7 {
[%emt 0:00:37]} Rg6+ {[%emt 0:00:14]} 38. Kf4 {[%emt 0:00:28]} Ke8 {[%emt 0:01:
53]} 39. Rb7 {[%emt 0:00:34][%cal Gf4f5]} Rh6 {[%emt 0:00:59]} (39... Rg2 40.
e6 Rxh2 41. Rxg7 (41. Ke5 g5)) 40. Rxg7 {[%emt 0:00:00]} Rxh2 {[%emt 0:00:00]}
41. Kf5 {[%emt 0:04:57]} Rh6 {[%emt 0:02:18]} 42. Ra7 {[%emt 0:02:31]} Kd8 {
[%emt 0:07:39]} 43. e6 $18 {[%emt 0:00:43]} Rh3 {[%emt 0:00:49]} 44. Bf6+ {
[%emt 0:03:20]} Kc8 {[%emt 0:00:25]} 45. e7 {[%emt 0:01:15]} Rxe3 {[%emt 0:02:
59]} 46. Ra8+ {[%emt 0:00:07]} 1-0

[Event "Sautron op 15th"]
[Site "Sautron"]
[Date "2015.10.24"]
[Round "7.1"]
[White "Zubarev, Alexander2"]
[Black "Ider, Borya"]
[Result "1/2-1/2"]
[ECO "A13"]
[WhiteElo "2542"]
[BlackElo "2464"]
[Annotator "RR"]
[PlyCount "69"]
[EventDate "2015.10.24"]
[EventType "swiss"]
[EventRounds "9"]
[EventCountry "FRA"]
[SourceTitle "CBM 169 Extra"]
[Source "ChessBase"]
[SourceDate "2015.12.18"]
[SourceVersion "1"]
[SourceVersionDate "2015.12.18"]
[SourceQuality "1"]
[TimeControl "40/5400+30:1800+30"]
[WhiteClock "0:01:21"]
[BlackClock "0:25:18"]

1. Nf3 {[%emt 0:00:00]} e6 {[%emt 0:00:00]} 2. c4 {[%emt 0:00:00]} d5 {[%emt 0:
00:00]} 3. g3 {[%emt 0:00:00]} Nf6 {[%emt 0:00:00]} 4. Bg2 {[%emt 0:00:00]}
dxc4 {[%emt 0:00:00] Une variante solide} 5. O-O {[%emt 0:00:24]} a6 {[%emt 0:
00:00][%cal Gb7b5]} 6. Qc2 {[%emt 0:00:17]} (6. Na3 Bxa3 7. bxa3 b5 8. Ng5 Nd5
9. d3 $13 {Von Bahr,O (2298)-Socko,B (2657) Rilton Cup 43rd 2013 (1) 0-1}) 6...
Bd6 {[%emt 0:00:01]} (6... Nbd7 7. Qxc4 b5 8. Qc2 Bb7 9. b3 Be7 10. Bb2 O-O 11.
a4 c5 12. d3 Qb6 13. Nbd2 Nd5 14. Rfc1 Rac8 15. axb5 axb5 16. Ne4 Nb4 17. Qc3
f6 18. Bh3 Rfe8 19. Qd2 Nd5 20. Qa5 Bf8 21. Qxb6 N5xb6 22. Ra5 Bc6 23. Nc3 b4
24. Ne4 Bxe4 25. dxe4 c4 26. bxc4 Nxc4 27. Ra6 Kf7 28. Ra7 Ncb6 29. Rxc8 Rxc8
30. Nd4 Re8 31. Rc7 Bc5 32. Nb3 Rc8 33. Rb7 Ke7 34. e3 Na4 35. Bd4 Bd6 36. Kg2
{Vachier Lagrave,M (2758)-Wojtaszek,R (2744) Beijing 2014 1-0}) (6... b5 7. Ne5
Nd5 8. d3 $32 {[%csl Re8]}) 7. Qxc4 {[%emt 0:01:48]} b5 {[%emt 0:00:04]
Gagnant un tempo important pour le développement et les Noirs ont des bons
résultats avec ce système} 8. Qc2 {[%emt 0:01:06]} Bb7 {[%emt 0:00:04]} 9. a4
{[%emt 0:02:01]} (9. d3) (9. Nc3) 9... Nbd7 {[%emt 0:01:54]} 10. Nc3 {[%emt 0:
01:24]} b4 {[%emt 0:00:24]} 11. Nd1 {[%emt 0:00:20]} O-O {[%emt 0:08:07]} 12.
b3 $146 {[%emt 0:12:28]} (12. Ne3 e5 13. b3 e4 14. Nd4 Be5 15. Bb2 c5 16. Ndf5
Bxb2 17. Qxb2 g6 18. Nd6 Bc6 19. d3 Qe7 20. Nxe4 Nxe4 21. Bxe4 Bxe4 22. dxe4
Qxe4 23. Rad1 Ra7 24. Rd6 Qe5 25. Qxe5 Nxe5 26. f4 Nd7 27. Rfd1 Re8 28. Ng4
Rxe2 29. Rxd7 Rxd7 30. Nf6+ Kg7 31. Nxd7 c4 32. bxc4 b3 33. Nc5 b2 34. Rb1 Rc2
35. Nd3 Rxc4 36. Rxb2 Rxa4 37. Rb7 Ra2 38. Ne5 a5 39. Rxf7+ Kg8 40. Ra7 a4 41.
g4 a3 {Bocharov,D (2567)-Matsenko,S (2482) Khanty-Mansiysk 2014 1-0}) 12... Ne5
$1 {[%emt 0:15:49]} 13. Nxe5 {[%emt 0:06:50]} Bxe5 {[%emt 0:04:24]} 14. Bxb7 {
[%emt 0:00:28]} Bxa1 {[%emt 0:00:07]} 15. Bxa8 {[%emt 0:00:06]} Qxa8 {[%emt 0:
00:05]} 16. Bb2 {[%emt 0:02:48]} Bxb2 {[%emt 0:00:16]} 17. Nxb2 {[%emt 0:00:20]
} Rd8 {[%emt 0:00:27]} 18. Rc1 {[%emt 0:04:18]} (18. Qxc7 Rxd2 $132 {[%csl Rb3]
}) (18. Rd1 {[%cal Gc2c7]}) 18... h5 {[%emt 0:04:19][%cal Ga8g2,Gh5h3]} 19. Nd3
{[%emt 0:04:29]} Ne4 {[%emt 0:30:06]} (19... h4 20. Nf4) 20. f3 {[%emt 0:11:44]
} Ng5 {[%emt 0:05:22]} 21. Kg2 {[%emt 0:01:14]} Qd5 {[%emt 0:01:20]} (21... Qb7
22. Qxc7) (21... Rd7 $6 {[%cal Gd7c7]} 22. Ne5 $132 {[%csl Rd7]}) 22. Nxb4 {
[%emt 0:08:43]} Qxd2 {[%emt 0:00:28]} 23. Qxd2 {[%emt 0:11:54]} Rxd2 {[%emt 0:
00:10]} 24. Kf2 {[%emt 0:01:23]} Rb2 {[%emt 0:05:05][%csl Gb2]} 25. h4 {
[%emt 0:02:23]} Rxb3 {[%emt 0:00:43]} 26. Nxa6 {[%emt 0:00:12]} Nh7 {[%emt 0:
00:07]} 27. Rxc7 {[%emt 0:12:51]} Nf6 {[%emt 0:00:04]} (27... Ra3 28. Nc5) 28.
Nc5 {[%emt 0:00:52]} Ra3 $1 {[%emt 0:00:04]} 29. Rc8+ {[%emt 0:06:08]} Kh7 {
[%emt 0:00:13]} 30. e4 {[%emt 0:00:37]} Rc3 {[%emt 0:01:44]} 31. Rc7 {[%emt 0:
05:07]} Ne8 {[%emt 0:00:03]} 32. Rc6 {[%emt 0:00:21]} Nf6 {[%emt 0:00:04]} 33.
Rc7 {[%emt 0:02:30]} Ne8 {[%emt 0:00:03]} 34. Rc6 {[%emt 0:00:49]} Nf6 {
[%emt 0:00:05]} 35. Rc7 {[%emt 0:00:14]} 1/2-1/2